fUSD/lending_fUSD_20250302
["ID","MTS","AMOUNT","RATE_DAILY","PERIOD"]
[355164070,1740939067970,-500.0,0.00027809,2]
[355164071,1740939067979,-500.0,0.00027809,2]
[355164072,1740939067988,-500.0,0.00027809,2]
[355164073,1740939067997,-528.21,0.00027809,2]
[355164074,1740939068008,-500.0,0.00027809,2]
[355164075,1740939068017,-500.0,0.00027809,2]
[355164076,1740939068027,-600.53,0.00027809,2]
[355164077,1740939068036,-650.74,0.00027809,2]
[355164078,1740939068046,-500.0,0.00027809,2]
[355164079,1740939068056,-500.0,0.00027809,2]
[355164080,1740939068065,-608.12,0.00027809,2]
[355164081,1740939068074,-500.0,0.00027809,2]
[355164082,1740939068083,-713.73,0.00027809,2]
[355164083,1740939068093,-500.0,0.00027809,2]
[355164084,1740939068103,-500.0,0.00027809,2]
[355164085,1740939068112,-592.31,0.00027809,2]
[355164086,1740939068121,-768.6,0.00027809,2]
[355164087,1740939068132,-500.0,0.00027809,2]
[355164088,1740939068142,-1343.9,0.00027809,2]
[355164089,1740939068151,-652.56,0.00027809,2]
[355164090,1740939068162,-4140.74,0.00027809,2]
[355164091,1740939068171,-596.26,0.00027809,2]
[355164092,1740939068180,-500.0,0.00027809,2]
[355164093,1740939068189,-1270.43,0.00027809,2]
[355164094,1740939068199,-500.0,0.00027809,2]
[355164095,1740939068208,-791.57,0.00027809,2]
[355164096,1740939068217,-500.0,0.00027809,2]
[355164097,1740939068227,-500.0,0.00027809,2]
[355164098,1740939068236,-500.0,0.0002781,2]
[355164099,1740939068246,-500.0,0.0002781,2]
[355164100,1740939068255,-500.0,0.0002781,2]
[355164101,1740939068264,-500.0,0.0002781,2]
[355164102,1740939068274,-500.0,0.0002781,2]
[355164103,1740939068284,-500.0,0.0002781,2]
[355164104,1740939068293,-500.0,0.0002781,2]
[355164105,1740939068302,-500.0,0.0002781,2]
[355164106,1740939068312,-508.85218491,0.0002781,2]
[355164107,1740939068321,-500.0,0.0002781,2]
[355164108,1740939068330,-500.0,0.0002781,2]
[355164109,1740939068344,-500.0,0.0002781,2]
[355164110,1740939068353,-500.0,0.0002781,2]
[355164111,1740939068362,-500.0,0.0002781,2]
[355164112,1740939068371,-500.0,0.0002781,2]
[355164113,1740939068383,-500.0,0.0002781,2]
[355164114,1740939068393,-500.0,0.0002781,2]
[355164115,1740939068402,-500.0,0.0002781,2]
[355164116,1740939068412,-525.37,0.0002781,2]
[355164117,1740939068421,-500.0,0.0002781,2]
[355164118,1740939068431,-500.0,0.0002781,2]
[355164119,1740939068442,-500.0,0.0002781,2]
[355164120,1740939068451,-500.0,0.0002781,2]
[355164121,1740939068460,-500.0,0.0002781,2]
[355164122,1740939068469,-500.0,0.0002781,2]
[355164123,1740939068478,-500.0,0.0002781,2]
[355164124,1740939068488,-856.65,0.0002781,2]
[355164125,1740939068497,-500.0,0.0002781,2]
[355164126,1740939068506,-1557.72,0.0002781,2]
[355164127,1740939068515,-500.0,0.0002781,2]
[355164128,1740939068525,-588.9,0.0002781,2]
[355164129,1740939068536,-927.56,0.0002781,2]
[355164130,1740939068546,-151.0,0.0002781,7]
[355164131,1740939068556,-500.0,0.0002781,2]
[355164132,1740939068567,-151.0,0.0002781,7]
[355164133,1740939068577,-1337.58,0.0002781,2]
[355164134,1740939068587,-500.0,0.0002781,2]
[355164135,1740939068596,-151.0,0.0002781,7]
[355164136,1740939068607,-873.07,0.0002781,2]
[355164137,1740939068616,-500.0,0.0002781,2]
[355164138,1740939068625,-1372.573571,0.0002781,7]
[355164139,1740939068637,-956.53,0.0002781,2]
[355164140,1740939068646,-1372.573571,0.0002781,7]
[355164141,1740939068656,-1282.66,0.0002781,2]
[355164142,1740939068665,-1394.32,0.0002781,2]
[355164143,1740939068674,-763.69,0.0002781,2]
[355164144,1740939068683,-500.0,0.00027811,2]
[355164145,1740939068692,-345.91905719,0.00027831,4]
[355164146,1740939068702,-222.0,0.0002786,2]
[355164147,1740939068711,-104592.59204546,0.000279,7]
[355164148,1740939068720,-1500.0,0.000279,10]
[355164149,1740939068730,-1000.0,0.000279,2]
[355164150,1740939068740,-1000.0,0.000279,2]
[355164151,1740939068749,-248.019775,0.0002791,7]
[355164152,1740939068758,-248.019775,0.0002791,7]
[355164153,1740939068767,-151.0,0.0002791,7]
[355164154,1740939068777,-762.55,0.0002791,7]
[355164155,1740939068786,-151.0,0.0002791,7]
[355164156,1740939068795,-762.55,0.0002791,7]
[355164157,1740939068804,-151.0,0.0002791,7]
[355164158,1740939068814,-151.0,0.0002791,7]
[355164159,1740939068823,-151.0,0.0002791,7]
[355164160,1740939068832,-151.0,0.0002791,7]
[355164161,1740939068841,-151.0,0.0002791,7]
[355164162,1740939068850,-151.0,0.0002791,7]
[355164163,1740939068859,-151.0,0.0002791,7]
[355164164,1740939068867,-157.492526,0.0002791,7]
[355164165,1740939068877,-157.492526,0.0002791,7]
[355164166,1740939068888,-874.7483,0.0002791,7]
[355164167,1740939068898,-874.7483,0.0002791,7]
[355164168,1740939068907,-2144.804443,0.0002791,7]
[355164169,1740939068916,-2144.804443,0.0002791,7]
[355164170,1740939068925,-151.0,0.0002791,7]
[355164171,1740939068935,-151.0,0.0002791,7]
[355164172,1740939068944,-151.0,0.00027911,7]
[355164173,1740939068954,-151.0,0.00027911,7]
[355164174,1740939068964,-151.0,0.00027911,7]
[355164175,1740939068973,-200.0,0.00027914,2]
[355164176,1740939068983,-165.83085562,0.00028,2]
[355164177,1740939068993,-1000.0,0.00028,2]
[355164178,1740939069002,-345.91905719,0.00028038,4]
[355164179,1740939069011,-1732.71,0.00028082,2]
[355164180,1740939069021,-248.006781,0.00028082,2]
[355164181,1740939069031,-550.93,0.00028082,2]
[355164182,1740939069040,-679.32,0.00028082,2]
[355164183,1740939069050,-822.5,0.00028082,2]
[355164184,1740939069059,-196.854988,0.00028082,2]
[355164185,1740939069068,-625.27,0.00028082,2]
[355164186,1740939069078,-720.38,0.00028082,2]
[355164187,1740939069088,-1866.42,0.00028082,2]
[355164188,1740939069098,-1050.5,0.00028082,2]
[355164189,1740939069108,-930.37,0.00028082,2]
[355164190,1740939069117,-1219.5,0.00028082,2]
[355164191,1740939069127,-629.6,0.00028082,2]
[355164192,1740939069140,-1652.74,0.00028082,2]
[355164193,1740939069151,-518.97,0.00028082,2]
[355164194,1740939069162,-701.89,0.00028082,2]
[355164195,1740939069172,-500.0,0.00028082,2]
[355164196,1740939069183,-500.0,0.00028082,2]
[355164197,1740939069194,-979.63,0.00028082,2]
[355164198,1740939069204,-898.75,0.00028082,2]
[355164199,1740939069216,-222.96501628,0.00028082,2]
[355164200,1740939069226,-500.0,0.00028082,2]
[355164201,1740939069238,-500.0,0.00028082,2]
[355164202,1740939069249,-632.66,0.00028082,2]
[355164203,1740939069259,-500.0,0.00028082,2]
[355164204,1740939069268,-867.95,0.00028082,2]
[355164205,1740939069278,-533.61,0.00028082,2]
[355164206,1740939069287,-808.44,0.00028082,2]
[355164207,1740939069298,-500.0,0.00028082,2]
[355164208,1740939069310,-500.0,0.00028082,2]
[355164209,1740939069322,-500.0,0.00028082,2]
[355164210,1740939069333,-510.05,0.00028082,2]
[355164211,1740939069346,-500.0,0.00028082,2]
[355164212,1740939069355,-515.47,0.00028082,2]
[355164213,1740939069367,-361.06,0.00028082,2]
[355164214,1740939069382,-544.53,0.00028082,2]
[355164215,1740939069392,-500.0,0.00028082,2]
[355164216,1740939069401,-834.57,0.00028082,2]
[355164217,1740939069411,-705.22,0.00028082,2]
[355164218,1740939069421,-500.0,0.00028082,2]
[355164219,1740939069431,-1244.05,0.00028082,2]
[355164220,1740939069442,-818.12,0.00028082,2]
[355164221,1740939069451,-861.37,0.00028082,2]
[355164222,1740939069460,-86.44441077,0.00028082,2]
[355164223,1740939069661,-413.55558923,0.00028082,2]
[355164224,1740939069672,-574.72,0.00028082,2]
[355164225,1740939069681,-539.64,0.00028082,2]
[355164226,1740939069690,-500.0,0.00028083,2]
[355164227,1740939069699,-529.79049214,0.00028083,2]
[355164228,1740939069709,-500.0,0.00028083,2]
[355164229,1740939069718,-500.0,0.00028083,2]
[355164230,1740939069727,-500.0,0.00028083,2]
[355164231,1740939069736,-500.0,0.00028083,2]
[355164232,1740939069745,-500.0,0.00028083,2]
[355164233,1740939069754,-429.06770202,0.00028083,2]
[355164234,1740939069891,-500.0,0.00025068,2]
[355164235,1740939069901,-500.0,0.00025068,2]
[355164236,1740939069911,-424.054215,0.00025069,2]
[355164237,1740939069927,-80.4637952,0.00025069,2]
[355164238,1740939069936,-500.0,0.00025069,2]
[355164239,1740939069946,-80.20696056,0.00025342,2]
[355164240,1740939069961,-357.75743594,0.00025342,2]
[355164241,1740939070008,-500.0,0.00025069,2]
[355164242,1740939070018,-62.0356035,0.00025342,2]
[355164243,1740939070027,-612.127568,0.00025342,2]
[355164244,1740939070037,-500.0,0.00025342,2]
[355164245,1740939070046,-500.0,0.00025343,2]
[355164246,1740939070056,-399.85,0.00025616,2]
[355164247,1740939070065,-500.0,0.00025616,2]
[355164248,1740939070075,-500.0,0.00027535,2]
[355164249,1740939070085,-500.0,0.00027809,2]
[355164250,1740939070095,-70.93229798,0.00028083,2]
[355164251,1740939070104,-410.62,0.00028083,2]
[355164252,1740939070113,-500.0,0.00028083,2]
[355164253,1740939070123,-500.0,0.00028083,2]
[355164254,1740939070133,-503.26,0.00028083,2]
[355164255,1740939070142,-274.85772205,0.00028083,2]
[355164256,1740939070153,-500.0,0.00028083,2]
[355164257,1740939070162,-500.0,0.00028083,2]
[355164258,1740939070171,-500.0,0.00028083,2]
[355164259,1740939070180,-500.0,0.00028083,2]
[355164260,1740939070190,-500.0,0.00028083,2]
[355164261,1740939070199,-500.0,0.00028083,2]
[355164262,1740939070209,-500.0,0.00028083,2]
[355164263,1740939070219,-750.0,0.00028083,2]
[355164264,1740939070228,-151.0,0.00028083,7]
[355164265,1740939070237,-500.0,0.00028083,2]
[355164266,1740939070246,-151.0,0.00028083,7]
[355164267,1740939070256,-151.0,0.00028083,7]
[355164268,1740939070265,-500.0,0.00028083,2]
[355164269,1740939070274,-500.0,0.00028083,2]
[355164270,1740939070284,-500.0,0.00028083,2]
[355164271,1740939070294,-500.0,0.00028083,2]
[355164272,1740939070303,-520.22,0.00028083,2]
[355164273,1740939070312,-151.0,0.00028083,7]
[355164274,1740939070322,-500.0,0.00028083,2]
[355164275,1740939070333,-603.34,0.00028083,2]
[355164276,1740939070346,-500.0,0.00028083,2]
[355164277,1740939070355,-447.886027,0.00028083,7]
[355164278,1740939070364,-857.56,0.00028083,2]
[355164279,1740939070375,-447.886027,0.00028083,7]
[355164280,1740939070386,-5024.537524,0.00028083,7]
[355164281,1740939070395,-5024.537524,0.00028083,7]
[355164282,1740939070404,-500.0,0.00028083,2]
[355164283,1740939070413,-150.0,0.00028083,2]
[355164284,1740939070423,-500.0,0.00028083,2]
[355164285,1740939070432,-500.0,0.00028083,2]
[355164286,1740939070442,-500.0,0.00028083,2]
[355164287,1740939070452,-500.0,0.00028083,2]
[355164288,1740939070462,-500.0,0.00028083,2]
[355164289,1740939070472,-151.0,0.00028083,7]
[355164290,1740939070482,-711.07,0.00028083,2]
[355164291,1740939070491,-500.0,0.00028083,2]
[355164292,1740939070501,-673.25,0.00028083,2]
[355164293,1740939070511,-500.0,0.00028083,2]
[355164294,1740939070520,-500.0,0.00028083,2]
[355164295,1740939070530,-927.56,0.00028083,2]
[355164296,1740939070540,-500.0,0.00028083,2]
[355164297,1740939070551,-814.36,0.00028083,2]
[355164298,1740939070560,-676.78,0.00028083,2]
[355164299,1740939070569,-500.0,0.00028083,2]
[355164300,1740939070578,-500.0,0.00028083,2]
[355164301,1740939070587,-500.0,0.00028083,2]
[355164302,1740939070596,-151.0,0.00028083,7]
[355164303,1740939070606,-528.21,0.00028083,2]
[355164304,1740939070615,-151.0,0.00028083,7]
[355164305,1740939070624,-500.0,0.00028083,2]
[355164306,1740939070635,-151.0,0.00028083,7]
[355164307,1740939070645,-151.0,0.00028083,7]
[355164308,1740939070655,-500.0,0.00028083,2]
[355164309,1740939070665,-600.53,0.00028083,2]
[355164310,1740939070675,-650.74,0.00028083,2]
[355164311,1740939070685,-151.570168,0.00028083,7]
[355164312,1740939070694,-500.0,0.00028083,2]
[355164313,1740939070704,-500.0,0.00028083,2]
[355164314,1740939070714,-391.657098,0.00028083,7]
[355164315,1740939070724,-391.657098,0.00028083,7]
[355164316,1740939070734,-608.12,0.00028083,2]
[355164317,1740939070744,-500.0,0.00028083,2]
[355164318,1740939070754,-713.73,0.00028083,2]
[355164319,1740939070763,-445.8425364,0.00028083,2]
[355164320,1740939070772,-500.0,0.00028083,2]
[355164321,1740939070782,-592.31,0.00028083,2]
[355164322,1740939070791,-768.6,0.00028083,2]
[355164323,1740939070801,-500.0,0.00028083,2]
[355164324,1740939070811,-1343.9,0.00028083,2]
[355164325,1740939070821,-652.56,0.00028083,2]
[355164326,1740939070830,-4140.74,0.00028083,2]
[355164327,1740939070841,-596.26,0.00028083,2]
[355164328,1740939070851,-500.0,0.00028083,2]
[355164329,1740939070861,-1270.43,0.00028083,2]
[355164330,1740939070871,-500.0,0.00028083,2]
[355164331,1740939070883,-791.57,0.00028083,2]
[355164332,1740939070892,-500.0,0.00028083,2]
[355164333,1740939070903,-500.0,0.00028083,2]
[355164334,1740939070913,-500.0,0.00028083,2]
[355164335,1740939070923,-500.0,0.00028084,2]
[355164336,1740939070938,-500.0,0.00028084,2]
[355164337,1740939070948,-500.0,0.00028084,2]
[355164338,1740939070958,-500.0,0.00028084,2]
[355164339,1740939070969,-500.0,0.00028084,2]
[355164340,1740939070979,-500.0,0.00028084,2]
[355164341,1740939070990,-500.0,0.00028084,2]
[355164342,1740939070999,-500.0,0.00028084,2]
[355164343,1740939071009,-151.479657,0.00028084,7]
[355164344,1740939071019,-500.0,0.00028084,2]
[355164345,1740939071028,-500.0,0.00028084,2]
[355164346,1740939071038,-500.0,0.00028084,2]
[355164347,1740939071048,-389.585761,0.00028084,7]
[355164348,1740939071058,-389.585761,0.00028084,7]
[355164349,1740939071068,-500.0,0.00028084,2]
[355164350,1740939071077,-1219.335758,0.00028084,7]
[355164351,1740939071087,-500.0,0.00028084,2]
[355164352,1740939071097,-500.0,0.00028084,2]
[355164353,1740939071107,-500.0,0.00028084,2]
[355164354,1740939071118,-500.0,0.00028084,2]
[355164355,1740939071128,-525.37,0.00028084,2]
[355164356,1740939071140,-500.0,0.00028084,2]
[355164357,1740939071150,-500.0,0.00028084,2]
[355164358,1740939071160,-500.0,0.00028084,2]
[355164359,1740939071170,-500.0,0.00028084,2]
[355164360,1740939071181,-500.0,0.00028084,2]
[355164361,1740939071191,-500.0,0.00028084,2]
[355164362,1740939071201,-500.0,0.00028084,2]
[355164363,1740939071211,-856.65,0.00028084,2]
[355164364,1740939071222,-500.0,0.00028084,2]
[355164365,1740939071232,-1557.72,0.00028084,2]
[355164366,1740939071242,-500.0,0.00028084,2]
[355164367,1740939071252,-588.9,0.00028084,2]
[355164368,1740939071262,-927.56,0.00028084,2]
[355164369,1740939071272,-500.0,0.00028084,2]
[355164370,1740939071282,-1337.58,0.00028084,2]
[355164371,1740939071293,-500.0,0.00028084,2]
[355164372,1740939071303,-873.07,0.00028084,2]
[355164373,1740939071313,-500.0,0.00028084,2]
[355164374,1740939071323,-956.53,0.00028084,2]
[355164375,1740939071334,-1282.66,0.00028084,2]
[355164376,1740939071344,-1394.32,0.00028084,2]
[355164377,1740939071354,-763.69,0.00028084,2]
[355164378,1740939071367,-500.0,0.00028085,2]
[355164379,1740939071378,-2002.71597417,0.000281,7]
[355164380,1740939071390,-3089.69456907,0.00028102,2]
[355164381,1740939071399,-150.0,0.00028107,2]
[355164382,1740939071409,-150.0,0.00028115,2]
[355164383,1740939071419,-150.0,0.00028151,2]
[355164384,1740939071430,-150.0,0.00028157,2]
[355164385,1740939071440,-243.34857083,0.00028163,2]
[355164386,1740939071450,-2764.77866452,0.00028164,2]
[355164387,1740939071460,-150.0,0.0002818,2]
[355164388,1740939071470,-151.0,0.00028183,7]
[355164389,1740939071479,-151.0,0.00028183,7]
[355164390,1740939071489,-237.571764,0.00028183,7]
[355164391,1740939071499,-237.571764,0.00028183,7]
[355164392,1740939071508,-151.0,0.00028183,7]
[355164393,1740939071518,-151.0,0.00028183,7]
[355164394,1740939071527,-151.0,0.00028183,7]
[355164395,1740939071536,-151.0,0.00028183,7]
[355164396,1740939071546,-151.0,0.00028183,7]
[355164397,1740939071556,-151.0,0.00028183,7]
[355164398,1740939071566,-151.0,0.00028183,7]
[355164399,1740939071576,-154.157461,0.00028184,7]
[355164400,1740939071586,-154.157461,0.00028184,7]
[355164401,1740939071595,-170.588834,0.00028184,7]
[355164402,1740939071605,-170.588834,0.00028184,7]
[355164403,1740939071615,-151.0,0.00028184,7]
[355164404,1740939071625,-450.88954,0.00028184,7]
[355164405,1740939071636,-450.88954,0.00028184,7]
[355164406,1740939071646,-151.0,0.00028185,7]
[355164407,1740939071656,-151.0,0.00028185,7]
[355164408,1740939071666,-330.11,0.00028203,2]
[355164409,1740939071676,-1444.47,0.00028203,2]
[355164410,1740939071686,-299.99,0.00028203,12]
[355164411,1740939071695,-8212.0,0.00028203,2]
[355164412,1740939071706,-3358.03,0.00028203,2]
[355164413,1740939071715,-3145.17,0.00028203,10]
[355164414,1740939071726,-499.99,0.00028203,2]
[355164415,1740939071735,-3174.24,0.00028203,2]
[355164416,1740939071746,-9999.99,0.00028203,2]
[355164417,1740939071756,-150.99,0.00028203,2]
[355164418,1740939071766,-999.99,0.00028203,2]
[355164419,1740939071776,-9999.99,0.00028203,2]
[355164420,1740939071786,-150.0,0.00028208,2]
[355164421,1740939071796,-345.91905719,0.00028245,5]
[355164422,1740939071807,-1318.0,0.000283,2]
[355164423,1740939071818,-1900.0,0.000283,10]
[355164424,1740939071829,-234.75068173,0.00028348,2]
[355164425,1740939071838,-150.0,0.00028353,2]
[355164426,1740939071848,-1732.71,0.00028356,2]
[355164427,1740939071859,-248.006781,0.00028356,2]
[355164428,1740939071869,-550.93,0.00028356,2]
[355164429,1740939071880,-679.32,0.00028356,2]
[355164430,1740939071891,-822.5,0.00028356,2]
[355164431,1740939071904,-196.854988,0.00028356,2]
[355164432,1740939071914,-625.27,0.00028356,2]
[355164433,1740939071925,-720.38,0.00028356,2]
[355164434,1740939071947,-1866.42,0.00028356,2]
[355164435,1740939071958,-1050.5,0.00028356,2]
[355164436,1740939071968,-930.37,0.00028356,2]
[355164437,1740939071979,-1219.5,0.00028356,2]
[355164438,1740939071989,-629.6,0.00028356,2]
[355164439,1740939071999,-882.14083409,0.00028356,2]
[355164440,1740939072014,-770.59916591,0.00028356,2]
[355164441,1740939072025,-518.97,0.00028356,2]
[355164442,1740939072035,-701.89,0.00028356,2]
[355164443,1740939072044,-500.0,0.00028356,2]
[355164444,1740939072054,-500.0,0.00028356,2]
[355164445,1740939072066,-979.63,0.00028356,2]
[355164446,1740939072076,-898.75,0.00028356,2]
[355164447,1740939072086,-500.0,0.00028356,2]
[355164448,1740939072096,-500.0,0.00028356,2]
[355164449,1740939072106,-632.66,0.00028356,2]
[355164450,1740939072115,-500.0,0.00028356,2]
[355164451,1740939072126,-867.95,0.00028356,2]
[355164452,1740939072140,-533.61,0.00028356,2]
[355164453,1740939072151,-300.052513,0.00028356,7]
[355164454,1740939072162,-808.44,0.00028356,2]
[355164455,1740939072174,-151.0,0.00028356,7]
[355164456,1740939072187,-500.0,0.00028356,2]
[355164457,1740939072198,-151.0,0.00028356,7]
[355164458,1740939072210,-500.0,0.00028356,2]
[355164459,1740939072220,-500.0,0.00028356,2]
[355164460,1740939072231,-510.05,0.00028356,2]
[355164461,1740939072242,-500.0,0.00028356,2]
[355164462,1740939072252,-515.47,0.00028356,2]
[355164463,1740939072262,-544.53,0.00028356,2]
[355164464,1740939072272,-151.0,0.00028356,7]
[355164465,1740939072282,-584.127414,0.00028356,7]
[355164466,1740939072292,-500.0,0.00028356,2]
[355164467,1740939072303,-834.57,0.00028356,2]
[355164468,1740939072313,-584.127414,0.00028356,7]
[355164469,1740939072324,-705.22,0.00028356,2]
[355164470,1740939072337,-151.0,0.00028356,7]
[355164471,1740939072348,-500.0,0.00028356,2]
[355164472,1740939072358,-151.0,0.00028356,7]
[355164473,1740939072369,-151.0,0.00028356,7]
[355164474,1740939072384,-1244.05,0.00028356,2]
[355164475,1740939072395,-818.12,0.00028356,2]
[355164476,1740939072406,-861.37,0.00028356,2]
[355164477,1740939072418,-500.0,0.00028356,2]
[355164478,1740939072428,-381.20473126,0.00028356,2]
[355164479,1740939072445,-500.0,0.00025343,2]
[355164480,1740939072455,-193.51526874,0.00028356,2]
[355164481,1740939072479,-539.64,0.00028356,2]
[355164482,1740939072491,-500.0,0.00028357,2]
[355164483,1740939072502,-619.48695476,0.00028357,2]
[355164484,1740939072512,-500.0,0.00028357,2]
[355164485,1740939072522,-500.0,0.00028357,2]
[355164486,1740939072534,-500.0,0.00028357,2]
[355164487,1740939072545,-500.0,0.00028357,2]
[355164488,1740939072557,-500.0,0.00028357,2]
[355164489,1740939072568,-32.14050807,0.00028357,2]
[355164490,1740939072583,-467.85949193,0.00028357,2]
[355164491,1740939072595,-500.0,0.00028357,2]
[355164492,1740939072606,-503.26,0.00028357,2]
[355164493,1740939072617,-541.18,0.00028357,2]
[355164494,1740939072628,-500.0,0.00028357,2]
[355164495,1740939072643,-483.88557889,0.00028357,2]
[355164496,1740939072653,-500.0,0.00028357,2]
[355164497,1740939072664,-500.0,0.00028357,2]
[355164498,1740939072676,-500.0,0.00028357,2]
[355164499,1740939072687,-500.0,0.00028357,2]
[355164500,1740939072698,-750.0,0.00028357,2]
[355164501,1740939072710,-500.0,0.00028357,2]
[355164502,1740939072721,-500.0,0.00028357,2]
[355164503,1740939072732,-500.0,0.00028357,2]
[355164504,1740939072743,-500.0,0.00028357,2]
[355164505,1740939072754,-500.0,0.00028357,2]
[355164506,1740939072766,-520.22,0.00028357,2]
[355164507,1740939072778,-500.0,0.00028357,2]
[355164508,1740939072788,-603.34,0.00028357,2]
[355164509,1740939072799,-500.0,0.00028357,2]
[355164510,1740939072811,-857.56,0.00028357,2]
[355164511,1740939072822,-500.0,0.00028357,2]
[355164512,1740939072833,-500.0,0.00028357,2]
[355164513,1740939072844,-500.0,0.00028357,2]
[355164514,1740939072855,-500.0,0.00028357,2]
[355164515,1740939072867,-500.0,0.00028357,2]
[355164516,1740939072879,-711.07,0.00028357,2]
[355164517,1740939072895,-500.0,0.00028357,2]
[355164518,1740939072906,-673.25,0.00028357,2]
[355164519,1740939072918,-500.0,0.00028357,2]
[355164520,1740939072931,-500.0,0.00028357,2]
[355164521,1740939072944,-927.56,0.00028357,2]
[355164522,1740939072956,-500.0,0.00028357,2]
[355164523,1740939072968,-814.36,0.00028357,2]
[355164524,1740939072979,-676.78,0.00028357,2]
[355164525,1740939072998,-500.0,0.00028357,2]
[355164526,1740939073011,-500.0,0.00028357,2]
[355164527,1740939073022,-500.0,0.00028357,2]
[355164528,1740939073035,-528.21,0.00028357,2]
[355164529,1740939073047,-500.0,0.00028357,2]
[355164530,1740939073060,-500.0,0.00028357,2]
[355164531,1740939073071,-600.53,0.00028357,2]
[355164532,1740939073083,-650.74,0.00028357,2]
[355164533,1740939073094,-525.72673871,0.00028357,2]
[355164534,1740939073106,-500.0,0.00028357,2]
[355164535,1740939073116,-608.12,0.00028357,2]
[355164536,1740939073127,-500.0,0.00028357,2]
[355164537,1740939073142,-554.8141446,0.00028357,2]
[355164538,1740939073158,-158.9158554,0.00028357,2]
[355164539,1740939073169,-1295.135676,0.00028357,7]
[355164540,1740939073181,-1295.135676,0.00028357,7]
[355164541,1740939073194,-500.0,0.00028357,2]
[355164542,1740939073542,-592.31,0.00028357,2]
[355164543,1740939073552,-768.6,0.00028357,2]
[355164544,1740939073563,-162.55391545,0.00028357,2]
[355164545,1740939073572,-1343.9,0.00028357,2]
[355164546,1740939073583,-652.56,0.00028357,2]
[355164547,1740939073593,-4140.74,0.00028357,2]
[355164548,1740939073603,-596.26,0.00028357,2]
[355164549,1740939073613,-500.0,0.00028357,2]
[355164550,1740939073624,-1270.43,0.00028357,2]
[355164551,1740939073637,-500.0,0.00028357,2]
[355164552,1740939073648,-791.57,0.00028357,2]
[355164553,1740939073659,-500.0,0.00028357,2]
[355164554,1740939073670,-500.0,0.00028357,2]
[355164555,1740939073679,-500.0,0.00028357,2]
[355164556,1740939073690,-151.0,0.00028358,7]
[355164557,1740939073699,-151.0,0.00028358,7]
[355164558,1740939073709,-200.246902,0.00028358,7]
[355164559,1740939073720,-200.246902,0.00028358,7]
[355164560,1740939073730,-500.0,0.00028358,2]
[355164561,1740939073739,-500.0,0.00028358,2]
[355164562,1740939073749,-151.0,0.00028358,7]
[355164563,1740939073759,-151.0,0.00028358,7]
[355164564,1740939073768,-500.0,0.00028358,2]
[355164565,1740939073778,-500.0,0.00028358,2]
[355164566,1740939073788,-500.0,0.00028358,2]
[355164567,1740939073797,-500.0,0.00028358,2]
[355164568,1740939073807,-500.0,0.00028358,2]
[355164569,1740939073817,-500.0,0.00028358,2]